bitfinex-derivatives/quotes_BNBF0:USTF0_20230901
["timestamp","ask_amount","ask_price","bid_price","bid_amount"]
[1693592475151,0.17340875,212.27,211.78,0.86739913]
[1693592475449,0.17340875,212.26,211.78,0.86739913]
[1693592475749,0.17340875,212.25,211.78,0.86739913]
[1693592475953,0.17340875,212.24,211.79,0.86739913]
[1693592476151,0.17340875,212.23,211.8,0.86739913]
[1693592476347,0.17340875,212.22,211.81,0.86739913]
[1693592476550,0.17340875,212.21,211.76,0.07726668]
[1693592476851,0.17340875,212.2,211.77,0.86739889]
[1693592477046,0.17340875,212.27,211.77,0.86739889]
[1693592477250,0.17340875,212.26,211.77,0.86739889]
[1693592477550,0.17340875,212.25,211.77,0.86739889]
[1693592477750,0.17340875,212.27,211.77,0.86739889]
[1693592477950,0.17340875,212.26,211.77,0.86739889]
[1693592478252,0.17340875,212.25,211.77,0.86739889]
[1693592478448,0.17340875,212.27,211.76,0.86739889]
[1693592478646,0.17340875,212.26,211.77,0.86739889]
[1693592478849,0.17340875,212.26,211.75,0.86739889]
[1693592479049,0.17340875,212.25,211.78,0.86739889]
[1693592479246,0.17340875,212.25,211.79,0.86739889]
[1693592479447,0.17340875,212.25,211.75,0.86739889]
[1693592479645,0.17340875,212.25,211.76,0.86745818]
[1693592479850,0.17340875,212.25,211.75,0.86745818]
[1693592480053,0.17340875,212.25,211.76,0.86745818]
[1693592480354,0.17340875,212.25,211.77,0.86745818]
[1693592480555,5.33116062,212.25,211.75,0.86745818]
[1693592480755,0.17340875,212.24,211.76,0.86745818]
[1693592481056,0.17340875,212.24,211.77,0.86745818]
[1693592481250,0.17340875,212.24,211.74,0.86745818]
[1693592481447,0.17340875,212.24,211.75,0.86745818]
[1693592481647,0.17340875,212.24,211.74,0.86745818]
[1693592481853,5.33116062,212.24,211.75,0.86745818]
[1693592482154,0.17340875,212.23,211.76,0.86745818]
[1693592482451,0.17340875,212.23,211.77,0.86745818]
[1693592482648,0.17340875,212.23,211.74,0.94472486]
[1693592482854,0.17340875,212.23,211.75,0.86746753]
[1693592483053,0.17340875,212.23,211.68,0.07726668]
[1693592483247,0.17340875,212.23,211.69,0.86775694]
[1693592483648,0.17340875,212.23,211.68,0.86775694]
[1693592483849,0.17340875,212.23,211.69,0.86775694]
[1693592484052,0.17340875,212.23,211.68,0.86775694]
[1693592484349,5.15775187,212.18,211.69,0.86775694]
[1693592484550,0.17340875,212.17,211.68,0.86775694]
[1693592484754,0.17340875,212.17,211.69,0.86775694]
[1693592484950,0.17340875,212.17,211.68,0.86775694]
[1693592485150,0.17340875,212.17,211.69,0.86775694]
[1693592485348,0.17340875,212.17,211.68,0.86775694]
[1693592485553,0.17340875,212.17,211.69,0.86775694]
[1693592485753,0.17340875,212.17,211.7,0.86775694]
[1693592485954,0.17340875,212.16,211.71,0.86775694]
[1693592486153,0.17340875,212.15,211.66,0.07726668]
[1693592486357,0.17340875,212.14,211.67,0.86777725]
[1693592486657,0.17340875,212.13,211.67,0.86777725]
[1693592486957,0.17340875,212.12,211.67,0.86777725]
[1693592487155,0.17340875,212.18,211.67,0.86777725]
[1693592487356,0.17340875,212.17,211.67,0.86777725]
[1693592487556,0.17340875,212.19,211.67,0.86777725]
[1693592487752,0.17340875,212.18,211.67,0.86777725]
[1693592487953,0.17340875,212.17,211.67,0.86777725]
[1693592488155,0.17340875,212.16,211.67,0.86777725]
[1693592488452,0.17340875,212.15,211.67,0.86777725]
[1693592488658,5.15775187,212.21,211.67,0.86777725]
[1693592488659,0.17340875,212.2,211.67,0.86777725]
[1693592488851,0.17340875,212.19,211.67,0.86777725]
[1693592489055,0.17340875,212.2,211.67,0.86777725]
[1693592489256,0.17340875,212.19,211.67,0.86777725]
[1693592489454,0.17340875,212.2,211.67,0.86777725]
[1693592489654,0.17340875,212.19,211.67,0.86777725]
[1693592489858,0.17340875,212.21,211.67,0.86777725]
[1693592490054,0.17340875,212.2,211.67,0.86777725]
[1693592490354,0.17340875,212.19,211.67,0.86777725]
[1693592490655,0.17340875,212.18,211.67,0.86777725]
[1693592490860,0.17340875,212.22,211.66,0.86777725]
[1693592491061,0.17340875,212.21,211.67,0.86777725]
[1693592491260,0.17340875,212.2,211.68,0.86777725]
[1693592491461,0.17340875,212.19,211.69,0.86777725]
[1693592491656,0.17340875,212.18,211.7,0.86777725]
[1693592491861,0.17340875,212.17,211.66,0.86777725]
[1693592492062,5.15775187,212.24,211.67,0.86777725]
[1693592492063,0.17340875,212.16,211.67,0.86777725]
[1693592492258,0.17340875,212.15,211.66,0.86777725]
[1693592492459,0.17340875,212.23,211.67,0.86777725]
[1693592492658,0.17340875,212.22,211.66,0.86777725]
[1693592492964,0.17340875,212.21,211.67,0.86777725]
[1693592493163,0.17340875,212.23,211.66,0.86777725]
[1693592493358,5.15775187,212.24,211.67,0.86777725]
[1693592493359,0.17340875,212.22,211.67,0.86777725]
[1693592493563,0.17340875,212.23,211.66,0.86777725]
[1693592494063,0.17340875,212.23,211.67,0.86777725]
[1693592494264,0.17340875,212.22,211.68,0.86777725]
[1693592494463,0.17340875,212.21,211.69,0.86777725]
[1693592494665,0.17340875,212.2,211.7,0.86777725]
[1693592494963,0.17340875,212.19,211.71,0.86777725]
[1693592495264,0.17340875,212.18,211.72,0.86777725]
[1693592495464,0.17340875,212.24,211.65,0.86777725]
[1693592495764,0.17340875,212.23,211.66,0.86776816]
[1693592495967,0.17340875,212.24,211.65,0.86776816]
[1693592496166,0.17340875,212.23,211.66,0.86776816]
[1693592496465,0.17340875,212.22,211.67,0.86776816]
[1693592496666,0.17340875,212.25,211.65,0.94503484]
[1693592496865,0.17340875,212.24,211.66,0.86776816]
[1693592497066,0.17340875,212.25,211.66,0.86776816]
[1693592497668,0.17340875,212.25,211.67,0.86776816]
[1693592497869,0.17340875,212.25,211.66,0.86776816]
[1693592498066,0.17340875,212.25,211.67,0.86776816]
[1693592498266,0.17340875,212.24,211.68,0.86776816]
[1693592498461,0.17340875,212.26,211.66,0.86776816]
[1693592498668,0.17340875,212.25,211.67,0.86776816]
[1693592498861,0.17340875,212.26,211.66,0.86776816]
[1693592499061,0.17340875,212.25,211.67,0.86776816]
[1693592499261,0.17340875,212.26,211.66,0.86776816]
[1693592499464,0.17340875,212.25,211.67,0.86776816]
[1693592499669,0.17340875,212.26,211.66,0.86776816]
[1693592499868,0.17340875,212.25,211.67,0.86776816]
[1693592500067,0.17340875,212.26,211.67,0.86776816]
[1693592500265,0.17340875,212.25,211.67,0.86776816]
[1693592500568,0.17340875,212.24,211.67,0.86776816]
[1693592500763,0.17340875,212.26,211.67,0.86776816]
[1693592500965,0.17340875,212.25,211.67,0.86776816]
[1693592501165,0.17340875,212.26,211.67,0.86776816]
[1693592501363,0.17340875,212.25,211.67,0.86776816]
[1693592501565,0.17340875,212.26,211.67,0.86776816]
[1693592501766,0.17340875,212.25,211.67,0.86776816]
[1693592501968,0.17340875,212.26,211.67,0.86776816]
[1693592502162,0.17340875,212.25,211.67,0.86776816]
[1693592502366,0.17340875,212.26,211.67,0.86776816]
[1693592502568,0.17340875,212.25,211.67,0.86776816]
[1693592502767,0.17340875,212.26,211.67,0.86776816]
[1693592503072,0.17340875,212.25,211.67,0.86776816]
[1693592503263,0.17340875,212.26,211.67,0.86776816]
[1693592504072,0.17340875,212.26,211.68,0.86776816]
[1693592504272,0.17340875,212.26,211.67,0.86776816]
[1693592504470,0.17340875,212.26,211.68,0.86776816]
[1693592504667,0.17340875,212.26,211.66,0.94503484]
[1693592504868,5.33116062,212.26,211.67,0.86776816]
[1693592505065,0.17340875,212.25,211.67,0.86776816]
[1693592507766,5.33116062,212.25,211.67,0.94503484]
[1693592507968,0.17340875,212.24,211.68,0.86776816]
[1693592508875,5.33116062,212.24,211.68,0.86776816]
[1693592509176,0.17340875,212.23,211.68,0.86776816]
[1693592510680,0.17340875,212.23,211.68,0.94503484]
[1693592510873,0.17340875,212.23,211.69,0.94503484]
[1693592511079,0.17340875,212.23,211.7,0.86776816]
[1693592511682,5.33116062,212.23,211.7,0.94503484]
[1693592511981,0.17340875,212.22,211.71,0.86776816]
[1693592512482,0.17340875,212.22,211.72,0.86776816]
[1693592512684,0.17340875,212.22,211.71,0.07726668]
[1693592512981,0.17340875,212.22,211.72,0.86776816]
[1693592513381,5.15775187,212.21,211.72,0.86776816]
[1693592513684,0.17340875,212.2,211.72,0.86776816]
[1693592514283,0.17340875,212.2,211.72,0.94503484]
[1693592514584,0.17340875,212.2,211.71,0.07726668]
[1693592514785,5.15775187,212.19,211.73,0.07726668]
[1693592514982,0.17340875,212.18,211.73,0.07726668]
[1693592515789,0.17340875,212.18,211.74,0.07726668]
[1693592516989,5.15775187,212.17,211.74,0.07726668]
[1693592517188,0.17340875,212.16,211.74,0.07726668]
[1693592517790,0.17340875,212.16,211.76,0.07726668]
[1693592518592,5.15775187,212.15,211.76,0.07726668]
[1693592518891,0.17340875,212.14,211.76,0.07726668]
[1693592519392,0.17340875,212.14,211.75,0.07726668]
[1693592519991,5.33116062,212.14,211.75,0.07726668]
[1693592520193,0.17340875,212.13,211.75,0.07726668]
[1693592520390,0.17340875,212.13,211.76,0.07726668]
[1693592520594,0.17340875,212.14,211.76,0.07726668]
[1693592520794,0.17340875,212.13,211.76,0.07726668]
[1693592520992,0.17340875,212.12,211.76,0.07726668]
[1693592521194,0.17340875,212.14,211.76,0.07726668]
[1693592521390,0.17340875,212.13,211.76,0.07726668]
[1693592521594,0.17340875,212.14,211.76,0.07726668]
[1693592521893,0.17340875,212.13,211.76,0.07726668]
[1693592522097,0.17340875,212.12,211.76,0.07726668]
[1693592522293,0.17340875,212.14,211.75,0.07726668]
[1693592522596,0.17340875,212.13,211.75,0.07726668]
[1693592522797,0.17340875,212.12,211.75,0.07726668]
[1693592522995,0.17340875,212.14,211.75,0.07726668]
[1693592523198,0.17340875,212.13,211.75,0.07726668]
[1693592523497,0.17340875,212.12,211.75,0.07726668]
[1693592523690,0.17340875,212.14,211.75,0.07726668]
[1693592523892,0.17340875,212.13,211.75,0.07726668]
[1693592524097,5.15775187,212.15,211.75,0.07726668]
[1693592524098,0.17340875,212.12,211.75,0.07726668]
[1693592524296,0.17340875,212.14,211.75,0.07726668]
[1693592524499,0.17340875,212.13,211.75,0.07726668]
[1693592525901,0.17340875,212.12,211.74,0.07726668]
[1693592526100,0.17340875,212.14,211.74,0.07726668]
[1693592526305,0.17340875,212.13,211.74,0.07726668]
[1693592526497,0.17340875,212.14,211.69,0.07726668]
[1693592526695,0.17340875,212.14,211.68,0.15453337]
[1693592526696,0.00161942,211.74,211.68,0.07726668]
[1693592526895,0.00161942,211.74,211.64,0.07726668]
[1693592527098,0.00161942,211.74,211.65,0.07726668]
[1693592528004,0.00161942,211.74,211.64,0.07726668]
[1693592528503,0.00161942,211.74,211.63,0.07726668]
[1693592528698,0.00161942,211.74,211.64,0.86812036]
[1693592531107,0.00161942,211.74,211.62,0.07726668]
[1693592531300,0.00161942,211.74,211.63,0.86811946]
[1693592531807,2.865e-05,211.74,211.63,0.86811946]
[1693592532801,2.865e-05,211.74,211.62,0.86811946]
[1693592533001,2.865e-05,211.74,211.63,0.86811946]
[1693592533204,2.865e-05,211.74,211.62,0.86811946]
[1693592533506,0.17340875,212.14,211.63,0.86811946]
[1693592533701,0.17340875,212.13,211.62,0.86811946]
[1693592533903,5.15775187,212.16,211.63,0.86811946]
[1693592533904,0.17340875,212.12,211.63,0.86811946]
[1693592534101,0.17340875,212.11,211.64,0.86811946]
[1693592534304,0.17340875,212.1,211.61,0.07726668]
[1693592534501,0.17340875,212.09,211.62,0.86811165]
[1693592534705,0.17340875,212.08,211.62,0.86811165]
[1693592534908,0.17340875,212.15,211.61,0.86811165]
[1693592535109,0.17340875,212.14,211.62,0.86811165]
[1693592535308,0.17340875,212.15,211.61,0.86811165]
[1693592535505,0.17340875,212.14,211.62,0.86811165]
[1693592535704,0.17340875,212.15,211.61,0.86811165]
[1693592535902,0.17340875,212.14,211.62,0.86811165]
[1693592536102,0.17340875,212.15,211.61,0.86811165]
[1693592536306,0.17340875,212.14,211.62,0.86811165]
[1693592536505,0.17340875,212.15,211.61,0.86811165]
[1693592536806,0.17340875,212.14,211.62,0.86811165]
[1693592537006,0.17340875,212.15,211.6,0.86811165]
[1693592537209,0.17340875,212.14,211.61,0.86811165]
[1693592537507,0.17340875,212.13,211.62,0.86811165]
[1693592537708,0.17340875,212.12,211.63,0.86811165]
[1693592537909,0.17340875,212.11,211.58,0.07726668]
[1693592538101,0.17340875,212.1,211.59,0.86814685]
[1693592538307,0.17340875,212.09,211.59,0.86814685]
[1693592538502,0.17340875,212.14,211.59,0.86814685]
[1693592538707,0.17340875,212.13,211.59,0.86814685]
[1693592538906,0.17340875,212.14,211.59,0.86814685]
[1693592539108,0.17340875,212.13,211.58,0.86814685]
[1693592539408,0.17340875,212.12,211.58,0.86814685]
[1693592539603,0.17340875,212.14,211.58,0.94541353]
[1693592539802,0.17340875,212.13,211.59,0.86814685]
[1693592540001,0.17340875,212.12,211.6,0.86814685]
[1693592540210,0.17340875,212.11,211.61,0.86814685]
[1693592540408,0.17340875,212.14,211.58,0.94541353]
[1693592540607,0.17340875,212.1,211.62,0.86814685]
[1693592540809,0.17340875,212.09,211.63,0.86814685]
[1693592541009,0.17340875,212.14,211.58,0.86814685]
[1693592541308,0.17340875,212.13,211.59,0.86813737]
[1693592541509,0.17340875,212.14,211.58,0.86813737]
[1693592541703,0.17340875,212.13,211.59,0.86813737]
[1693592541908,0.17340875,212.14,211.58,0.86813737]
[1693592542208,0.17340875,212.13,211.59,0.86813737]
[1693592542409,0.17340875,212.12,211.6,0.86813737]
[1693592542709,0.17340875,212.11,211.61,0.86813737]
[1693592542910,0.17340875,212.1,211.62,0.86813737]
[1693592543109,0.17340875,212.14,211.58,0.86813737]
[1693592543307,0.17340875,212.13,211.59,0.86813737]
[1693592543505,0.17340875,212.14,211.58,0.86813737]
[1693592543706,0.17340875,212.13,211.59,0.86813737]
[1693592543906,0.17340875,212.14,211.58,0.86813737]
[1693592544106,0.17340875,212.13,211.59,0.86813737]
[1693592544303,0.17340875,212.12,211.6,0.86813737]
[1693592544505,5.15775187,212.15,211.58,0.86813737]
[1693592544506,0.17340875,212.14,211.58,0.86813737]
[1693592544704,0.17340875,212.13,211.59,0.86813737]
[1693592544903,0.17340875,212.12,211.6,0.86813737]
[1693592545105,0.17340875,212.14,211.58,0.86813737]
[1693592545311,0.17340875,212.13,211.59,0.86813737]
[1693592545510,0.17340875,212.14,211.58,0.86813737]
[1693592545707,0.17340875,212.13,211.59,0.86813737]
[1693592545907,0.17340875,212.14,211.58,0.86813737]
[1693592546114,0.17340875,212.13,211.59,0.86813737]
[1693592546414,0.17340875,212.12,211.6,0.86813737]
[1693592546615,0.17340875,212.14,211.58,0.86813737]
[1693592546810,0.17340875,212.13,211.59,0.86813737]
[1693592547010,5.15775187,212.15,211.59,0.86813737]
[1693592547011,0.17340875,212.14,211.59,0.86813737]
[1693592547212,0.17340875,212.13,211.59,0.86813737]
[1693592547409,0.17340875,212.12,211.59,0.86813737]
[1693592547609,0.17340875,212.11,211.59,0.86813737]
[1693592547809,0.17340875,212.14,211.59,0.86813737]
[1693592548009,0.17340875,212.13,211.59,0.86813737]
[1693592548214,0.17340875,212.14,211.59,0.86813737]
[1693592548415,0.17340875,212.13,211.59,0.86813737]
[1693592548715,0.17340875,212.12,211.59,0.86813737]
[1693592548915,0.17340875,212.14,211.59,0.86813737]
[1693592549115,0.17340875,212.13,211.59,0.86813737]
[1693592549315,0.17340875,212.14,211.59,0.86813737]
[1693592549614,0.17340875,212.13,211.59,0.86813737]
[1693592549814,0.17340875,212.14,211.59,0.86813737]
[1693592550015,0.17340875,212.13,211.59,0.86813737]
[1693592550210,0.17340875,212.14,211.59,0.86813737]
[1693592550413,0.17340875,212.13,211.59,0.86813737]
[1693592550612,0.17340875,212.14,211.59,0.86813737]
[1693592550813,0.17340875,212.13,211.59,0.94540405]
[1693592551013,0.17340875,212.12,211.6,0.86813737]
[1693592551209,0.17340875,212.14,211.59,0.86813737]
[1693592551510,0.17340875,212.13,211.6,0.86813737]
[1693592551714,0.17340875,212.13,211.59,0.94540405]
[1693592551913,0.17340875,212.13,211.6,0.86813737]
[1693592552611,5.33116062,212.13,211.6,0.94540405]
[1693592552818,0.17340875,212.12,211.61,0.86813737]
[1693592554018,5.33116062,212.12,211.61,0.86813737]
[1693592554218,0.17340875,212.11,211.61,0.86813737]
[1693592556213,0.17340875,212.11,211.6,0.86813737]
[1693592556417,0.17340875,212.11,211.61,0.86820169]
[1693592556613,0.17340875,212.11,211.59,0.07726668]
[1693592556817,0.17340875,212.11,211.6,0.86819504]
[1693592557014,5.33116062,212.11,211.6,0.86819504]
[1693592557219,0.17340875,212.1,211.6,0.94546172]
[1693592557414,0.17340875,212.1,211.61,0.86819504]
[1693592558821,5.33116062,212.1,211.61,0.94546172]
[1693592559021,0.17340875,212.09,211.62,0.86819504]
[1693592559422,0.17340875,212.09,211.62,0.94546172]
[1693592559716,0.17340875,212.09,211.63,0.07726668]
[1693592559921,5.33116062,212.09,211.64,0.07726668]
[1693592560121,0.17340875,212.08,211.64,0.07726668]
[1693592560522,0.17340875,212.08,211.63,0.07726668]
[1693592560716,0.17340875,212.08,211.68,0.07726668]
[1693592560919,0.17340875,212.07,211.71,0.07726668]
[1693592561120,0.17340875,212.06,211.7,0.07726668]
[1693592561422,0.17340875,212.05,211.7,0.07726668]
[1693592561617,0.17340875,212.11,211.7,0.07726668]
[1693592561822,0.17340875,212.1,211.7,0.07726668]
[1693592562124,0.17340875,212.09,211.7,0.07726668]
[1693592562324,0.17340875,212.11,211.7,0.07726668]
[1693592562623,0.17340875,212.1,211.7,0.07726668]
[1693592562821,0.17340875,212.09,211.7,0.07726668]
[1693592563017,0.17340875,212.08,211.69,0.07726668]
[1693592563218,0.17340875,212.07,211.69,0.07726668]
[1693592563423,0.17340875,212.06,211.69,0.07726668]
[1693592563619,0.17340875,212.05,211.69,0.07726668]
[1693592563823,7.22085262,212.16,211.69,0.07726668]
[1693592563824,0.17340875,212.04,211.69,0.07726668]
[1693592564020,0.17340875,212.03,211.69,0.07726668]
[1693592564324,0.17340875,212.02,211.69,0.07726668]
[1693592564525,0.17340875,212.01,211.69,0.07726668]
[1693592564726,0.17340875,212.13,211.69,0.07726668]
[1693592565027,0.17340875,212.12,211.69,0.07726668]
[1693592565225,0.17340875,212.13,211.69,0.07726668]
[1693592565526,0.17340875,212.12,211.69,0.07726668]
[1693592565826,0.17340875,212.11,211.68,0.07726668]
[1693592566020,5.15775187,212.15,211.68,0.07726668]
[1693592566021,0.17340875,212.1,211.68,0.07726668]
[1693592566224,0.17340875,212.09,211.68,0.07726668]
[1693592566425,0.17340875,212.08,211.68,0.07726668]
[1693592566626,0.17340875,212.07,211.68,0.07726668]
[1693592566925,0.17340875,212.06,211.67,0.07726668]
[1693592567126,0.17340875,212.05,211.68,0.86788312]
[1693592567327,0.17340875,212.04,211.68,0.86788312]
[1693592567526,0.17340875,212.03,211.68,0.86788312]
[1693592567729,0.17340875,212.02,211.68,0.86788312]
[1693592568027,0.17340875,212.01,211.68,0.86788312]
[1693592568322,0.17340875,212.0,211.68,0.86788312]
[1693592568526,0.17340875,211.99,211.68,0.86788312]
[1693592568720,5.15775187,212.16,211.68,0.86788312]
[1693592568923,0.17357656,212.15,211.68,0.86788312]
[1693592569124,0.17357656,212.15,211.66,0.07726668]
[1693592569324,0.17357656,212.15,211.67,0.86789351]
[1693592569925,0.17357656,212.15,211.65,0.07726668]
[1693592570122,5.15775187,212.14,211.66,0.86794745]
[1693592570322,0.17357656,212.13,211.66,0.86794745]
[1693592571722,0.17357656,212.14,211.66,0.86794745]
[1693592571922,0.17357656,212.13,211.66,0.86794745]
[1693592572123,0.17357656,212.12,211.66,0.86794745]
[1693592572428,5.15775187,212.15,211.66,0.86794745]
[1693592572429,0.17357656,212.11,211.66,0.86794745]
[1693592572629,0.17357656,212.14,211.66,0.86794745]
[1693592572829,0.17357656,212.13,211.66,0.86794745]
[1693592573030,0.17357656,212.12,211.66,0.86794745]
[1693592573233,0.17357656,212.14,211.66,0.86794745]
[1693592573428,0.17357656,212.13,211.66,0.86794745]
[1693592573625,0.17357656,212.12,211.66,0.86794745]
[1693592573829,0.17357656,212.11,211.67,0.86794745]
[1693592574029,0.17357656,212.11,211.64,0.07726668]
[1693592574030,0.17357656,212.13,211.65,0.86794745]
[1693592574231,0.17357656,212.12,211.66,0.86794107]
[1693592574425,0.17357656,212.11,211.67,0.86794107]
[1693592574631,0.17357656,212.1,211.64,0.07726668]
[1693592574831,0.17357656,212.13,211.65,0.867941]
[1693592575033,0.17357656,212.12,211.65,0.867941]
[1693592575224,0.17357656,212.11,211.65,0.867941]
[1693592575429,0.17357656,212.14,211.65,0.867941]
[1693592575629,0.17357656,212.13,211.65,0.867941]
[1693592575830,0.17357656,212.12,211.65,0.867941]
[1693592576133,0.17357656,212.11,211.65,0.867941]
[1693592576334,0.17357656,212.1,211.65,0.867941]
[1693592576532,0.17357656,212.09,211.65,0.867941]
[1693592576833,0.17357656,212.08,211.65,0.867941]
[1693592577033,0.17357656,212.07,211.65,0.867941]
[1693592577233,0.17357656,212.06,211.65,0.867941]
[1693592577430,0.17357656,212.05,211.65,0.867941]
[1693592577631,0.17357656,212.14,211.64,0.867941]
[1693592577829,0.17357656,212.13,211.65,0.867941]
[1693592578032,0.17357656,212.13,211.66,0.867941]
[1693592578231,0.17357656,212.13,211.64,0.867941]
[1693592578436,0.17357656,212.13,211.65,0.867941]
[1693592578735,0.17357656,212.13,211.66,0.867941]
[1693592578939,0.17357656,212.13,211.64,0.867941]
[1693592579130,0.17357656,212.13,211.65,0.867941]
[1693592579334,0.17357656,212.13,211.63,0.07726668]
[1693592579335,0.17357656,212.13,211.66,0.867941]
[1693592579634,0.17357656,212.13,211.67,0.867941]
[1693592579834,0.17357656,212.13,211.63,0.07726668]
[1693592580035,0.17357656,212.13,211.64,0.86794724]
[1693592582840,0.17357656,212.13,211.64,0.94521392]
[1693592583035,0.17357656,212.12,211.65,0.86794724]
[1693592583237,0.17357656,212.14,211.65,0.86794724]
[1693592583438,0.17357656,212.13,211.65,0.86794724]
[1693592583637,0.17357656,212.14,211.65,0.86794724]
[1693592583947,0.17357656,212.13,211.65,0.86794724]
[1693592584634,0.17357656,212.12,211.66,0.86794724]
[1693592584835,5.15775187,212.15,211.64,0.86794724]
[1693592584836,0.17357656,212.14,211.64,0.86794724]
[1693592585035,0.17357656,212.13,211.65,0.86794724]
[1693592585339,0.17357656,212.12,211.66,0.86794724]
[1693592585539,0.17357656,212.11,211.67,0.86794724]
[1693592585839,0.17357656,212.1,211.63,0.07726668]
[1693592586041,0.17357656,212.09,211.64,0.86793843]
[1693592586239,0.17357656,212.13,211.64,0.86793843]
[1693592586440,0.17357656,212.12,211.64,0.86793843]
[1693592586640,0.17357656,212.11,211.64,0.86793843]
[1693592586841,0.17357656,212.1,211.64,0.86793843]
[1693592587041,0.17357656,212.09,211.64,0.86793843]
[1693592587339,0.17357656,212.08,211.64,0.86793843]
[1693592587539,0.17357656,212.07,211.64,0.86793843]
[1693592587741,0.17357656,212.13,211.64,0.86793843]
[1693592587935,0.17357656,212.12,211.64,0.86793843]
[1693592588137,0.17357656,212.11,211.64,0.86793843]
[1693592588333,0.17357656,212.1,211.64,0.86793843]
[1693592588536,0.17357656,212.09,211.64,0.86793843]
[1693592588734,0.17357656,212.08,211.64,0.94520511]
[1693592588939,0.17357656,212.07,211.65,0.86793843]
[1693592589138,0.17357656,212.12,211.65,0.86793843]
[1693592589344,0.17357656,212.11,211.65,0.86793843]
[1693592589535,0.17357656,212.12,211.65,0.86793843]
[1693592589739,0.17357656,212.11,211.65,0.86793843]
[1693592589936,0.17357656,212.12,211.65,0.86793843]
[1693592590143,0.17357656,212.1,211.65,0.86793843]
[1693592590342,0.17357656,212.09,211.65,0.86793843]
[1693592590543,0.17357656,212.12,211.65,0.94520511]
[1693592590742,0.17357656,212.11,211.66,0.86793843]
[1693592591042,0.17357656,212.1,211.66,0.86793843]
[1693592591244,0.17357656,212.09,211.66,0.86793843]
[1693592591543,0.17357656,212.08,211.66,0.86793843]
[1693592591744,0.17357656,212.13,211.66,0.94520511]
[1693592591943,0.17357656,212.12,211.67,0.86793843]
[1693592592140,0.17357656,212.13,211.67,0.86793843]
[1693592592344,0.17357656,212.12,211.67,0.86793843]
[1693592592541,0.17357656,212.13,211.67,0.86793843]
[1693592592739,0.17357656,212.12,211.67,0.86793843]
[1693592592941,5.15775187,212.12,211.67,0.86793843]
[1693592593145,0.17357656,212.11,211.67,0.86793843]
[1693592593848,0.17357656,212.11,211.67,0.94520511]
[1693592594048,0.17357656,212.11,211.67,0.07726668]
[1693592594446,5.15775187,212.1,211.67,0.07726668]
[1693592594648,0.17357656,212.09,211.67,0.07726668]
[1693592594848,5.33132843,212.09,211.69,0.07726668]
[1693592595050,0.17357656,212.08,211.69,0.07726668]
[1693592596453,0.17357656,212.08,211.7,0.07726668]
[1693592597050,0.17357656,212.08,211.69,0.07726668]
[1693592600149,5.33132843,212.08,211.69,0.07726668]
[1693592600357,0.17357656,212.07,211.69,0.07726668]
[1693592600755,0.17357656,212.06,211.69,0.07726668]
[1693592600954,0.17357656,212.08,211.69,0.07726668]
[1693592601152,0.17357656,212.07,211.69,0.07726668]
[1693592601354,0.17357656,212.06,211.69,0.07726668]
[1693592601555,0.17357656,212.05,211.69,0.07726668]
[1693592601856,0.17357656,212.04,211.69,0.07726668]
[1693592602051,0.17357656,212.08,211.69,0.07726668]
[1693592602350,5.15775187,212.09,211.69,0.07726668]
[1693592602351,0.17357656,212.07,211.69,0.07726668]
[1693592602555,0.17357656,212.08,211.69,0.07726668]
[1693592602756,0.17357656,212.07,211.69,0.07726668]
[1693592602955,0.17357656,212.06,211.69,0.07726668]
[1693592603254,0.17357656,212.05,211.69,0.07726668]
[1693592603450,0.17357656,212.08,211.69,0.07726668]
[1693592603656,0.17357656,212.07,211.69,0.07726668]
[1693592603858,0.17357656,212.06,211.69,0.07726668]
[1693592604157,0.17357656,212.05,211.69,0.07726668]
[1693592604355,0.17357656,212.08,211.69,0.07726668]
[1693592604657,0.17357656,212.07,211.69,0.07726668]
[1693592604858,5.33132843,212.08,211.69,0.07726668]
[1693592605056,0.17357656,212.07,211.69,0.07726668]
[1693592605858,0.17357656,212.08,211.69,0.07726668]
[1693592606060,0.17357656,212.07,211.69,0.07726668]
[1693592606258,5.15775187,212.09,211.69,0.07726668]
[1693592606259,0.17357656,212.06,211.69,0.07726668]
[1693592606560,0.17357656,212.05,211.69,0.07726668]
[1693592606760,0.17357656,212.08,211.69,0.07726668]
[1693592606960,0.17357656,212.07,211.69,0.07726668]
[1693592612460,0.17357656,212.07,211.68,0.07726668]
[1693592612858,5.33132843,212.07,211.68,0.07726668]
[1693592613063,0.17357656,212.06,211.68,0.07726668]
[1693592618867,0.17357656,212.06,211.63,0.07726668]
[1693592619066,7.22085262,212.04,211.62,0.07726668]
[1693592619264,0.17357656,212.03,211.62,0.07726668]
[1693592619665,5.15775187,212.01,211.62,0.07726668]
[1693592619867,0.17357656,212.0,211.6,0.07726668]
[1693592620064,0.17357656,212.02,211.6,0.07726668]
[1693592620264,0.17357656,212.01,211.6,0.07726668]
[1693592620566,0.17357656,212.0,211.6,0.07726668]
[1693592620767,0.17357656,212.02,211.6,0.07726668]
[1693592620967,0.17357656,212.01,211.6,0.07726668]
[1693592621167,0.17357656,212.02,211.6,0.07726668]
[1693592621464,0.17357656,212.01,211.6,0.07726668]
[1693592621767,0.17357656,212.0,211.58,0.07726668]
[1693592621966,0.17357656,212.02,211.59,0.86823849]
[1693592622163,0.17357656,212.01,211.59,0.86823849]